[Event "*** Titled Tuesday Blitz"]
[Site "Chess.com"]
[Date "2021.03.30"]
[Round "2"]
[White "dhaessel"]
[Black "ErikRonka"]
[Result "0-1"]
[WhiteElo "2012"]
[BlackElo "2386"]
[TimeControl "180+1"]
[EndTime "10:15:31 PDT"]
[Termination "ErikRonka won by resignation"]

1. d4 {[%clk 0:02:54.6]} 1... d5 {[%clk 0:02:59]} 2. c4 {[%clk 0:02:52.6]} 2...
e6 {[%clk 0:02:59.1]} 3. Nc3 {[%clk 0:02:51.4]} 3... a6 {[%clk 0:02:58.5]} 4.
Nf3 {[%clk 0:02:35.4]} 4... Nf6 {[%clk 0:02:57.7]} 5. Bg5 {[%clk 0:02:32.7]}
5... dxc4 {[%clk 0:02:56.4]} 6. a4 {[%clk 0:02:23.6]} 6... Nc6 {[%clk
0:02:55.3]} 7. e4 {[%clk 0:02:18.5]} 7... Na5 {[%clk 0:02:53.2]} 8. e5 {[%clk
0:02:14.1]} 8... h6 {[%clk 0:02:52.7]} 9. Bh4 {[%clk 0:02:12.3]} 9... g5 {[%clk
0:02:52.5]} 10. Nxg5 {[%clk 0:02:12.1]} 10... hxg5 {[%clk 0:02:51.9]} 11. Bxg5
{[%clk 0:02:13]} 11... Be7 {[%clk 0:02:51.7]} 12. exf6 {[%clk 0:02:08.4]} 12...
Bxf6 {[%clk 0:02:52.6]} 13. Bxf6 {[%clk 0:02:07.5]} 13... Qxf6 {[%clk
0:02:53.5]} 14. Be2 {[%clk 0:01:58.4]} 14... Bd7 {[%clk 0:02:26.9]} 15. Bf3
{[%clk 0:01:53.5]} 15... O-O-O {[%clk 0:02:19.2]} 16. O-O {[%clk 0:01:43.7]}
16... Rxh2 {[%clk 0:01:10]} 17. Ne4 {[%clk 0:00:54.8]} 17... Qh6 {[%clk
0:00:53.3]} 18. g3 {[%clk 0:00:52.6]} 18... Rh8 {[%clk 0:00:50.6]} 0-1

[Event "*** Titled Tuesday Blitz"]
[Site "Chess.com"]
[Date "2021.03.30"]
[Round "2"]
[White "bocah_sakit"]
[Black "Kotofeyca"]
[Result "1-0"]
[WhiteElo "2840"]
[BlackElo "2359"]
[TimeControl "180+1"]
[EndTime "10:15:39 PDT"]
[Termination "bocah_sakit won by checkmate"]

1. e4 {[%clk 0:03:00.9]} 1... c5 {[%clk 0:02:59.6]} 2. Nf3 {[%clk 0:03:01.2]}
2... d6 {[%clk 0:03:00.1]} 3. d4 {[%clk 0:03:01.2]} 3... cxd4 {[%clk 0:03:01]}
4. Nxd4 {[%clk 0:03:02.1]} 4... Nf6 {[%clk 0:03:01.6]} 5. Nc3 {[%clk 0:03:02.5]}
5... a6 {[%clk 0:03:02.2]} 6. Bg5 {[%clk 0:03:03]} 6... e6 {[%clk 0:03:02.3]} 7.
f4 {[%clk 0:03:03.5]} 7... Qb6 {[%clk 0:03:02.5]} 8. Qd2 {[%clk 0:03:03]} 8...
Nc6 {[%clk 0:03:03]} 9. Nb3 {[%clk 0:02:59.5]} 9... Be7 {[%clk 0:03:01.9]} 10.
O-O-O {[%clk 0:02:59.4]} 10... Qc7 {[%clk 0:03:00.1]} 11. Bd3 {[%clk 0:02:55.2]}
11... b5 {[%clk 0:02:59.6]} 12. g4 {[%clk 0:02:55]} 12... Bb7 {[%clk 0:02:57.8]}
13. Bxf6 {[%clk 0:02:52.3]} 13... Bxf6 {[%clk 0:02:56.1]} 14. g5 {[%clk
0:02:52.7]} 14... Be7 {[%clk 0:02:51.3]} 15. h4 {[%clk 0:02:47.7]} 15... h5
{[%clk 0:02:45.3]} 16. g6 {[%clk 0:02:44.6]} 16... fxg6 {[%clk 0:02:28]} 17. Qg2
{[%clk 0:02:40.5]} 17... Rh6 {[%clk 0:02:21.9]} 18. Qh3 {[%clk 0:02:20.4]} 18...
Qd7 {[%clk 0:01:58.7]} 19. e5 {[%clk 0:02:19]} 19... O-O-O {[%clk 0:01:53]} 20.
exd6 {[%clk 0:02:00.5]} 20... Bxd6 {[%clk 0:01:49.2]} 21. Be4 {[%clk 0:02:00.6]}
21... Bxf4+ {[%clk 0:01:42.7]} 22. Kb1 {[%clk 0:02:01]} 22... Qe7 {[%clk
0:01:41.3]} 23. Qf3 {[%clk 0:01:58.2]} 23... Qc7 {[%clk 0:01:29.2]} 24. Nc5
{[%clk 0:01:58.4]} 24... g5 {[%clk 0:01:12.8]} 25. Nxb7 {[%clk 0:01:55.2]} 25...
Rxd1+ {[%clk 0:01:09.8]} 26. Rxd1 {[%clk 0:01:54.3]} 26... Kxb7 {[%clk
0:01:10.7]} 27. hxg5 {[%clk 0:01:48.3]} 27... Bxg5 {[%clk 0:01:07.1]} 28. Bxc6+
{[%clk 0:01:32.1]} 28... Qxc6 {[%clk 0:01:06.9]} 29. Rd7+ {[%clk 0:01:32.7]}
29... Kb6 {[%clk 0:01:07.3]} 30. Qf2+ {[%clk 0:01:33.2]} 30... Ka5 {[%clk
0:01:02]} 31. a3 {[%clk 0:01:22.6]} 31... b4 {[%clk 0:00:45.1]} 32. axb4+ {[%clk
0:01:20.6]} 32... Kxb4 {[%clk 0:00:45.9]} 33. Qd4+ {[%clk 0:01:20.5]} 33... Ka5
{[%clk 0:00:39.3]} 34. b4# {[%clk 0:01:20.2]} 1-0

[Event "*** Titled Tuesday Blitz"]
[Site "Chess.com"]
[Date "2021.03.30"]
[Round "2"]
[White "Djager97"]
[Black "Kildepiotr"]
[Result "1-0"]
[WhiteElo "2499"]
[BlackElo "2679"]
[TimeControl "180+1"]
[EndTime "10:15:41 PDT"]
[Termination "Djager97 won by checkmate"]

1. e4 {[%clk 0:03:00.9]} 1... g6 {[%clk 0:02:59.4]} 2. d4 {[%clk 0:03:00.8]}
2... Bg7 {[%clk 0:02:59.2]} 3. Nc3 {[%clk 0:03:01.4]} 3... c6 {[%clk 0:02:59.2]}
4. f4 {[%clk 0:03:01.3]} 4... d5 {[%clk 0:02:59.1]} 5. e5 {[%clk 0:03:01.7]}
5... Nh6 {[%clk 0:02:58.4]} 6. Nf3 {[%clk 0:03:01.7]} 6... Bg4 {[%clk
0:02:58.3]} 7. Be3 {[%clk 0:03:01.9]} 7... Nf5 {[%clk 0:02:58]} 8. Bf2 {[%clk
0:03:02]} 8... h5 {[%clk 0:02:58.5]} 9. h3 {[%clk 0:03:02.4]} 9... Bxf3 {[%clk
0:02:58.3]} 10. Qxf3 {[%clk 0:03:03.3]} 10... h4 {[%clk 0:02:58.9]} 11. Bd3
{[%clk 0:03:02.3]} 11... e6 {[%clk 0:02:59.1]} 12. Ne2 {[%clk 0:02:58.3]} 12...
Bf8 {[%clk 0:02:57.9]} 13. O-O {[%clk 0:02:54.7]} 13... Qb6 {[%clk 0:02:56.7]}
14. b3 {[%clk 0:02:53.1]} 14... c5 {[%clk 0:02:56.7]} 15. c4 {[%clk 0:02:28.1]}
15... dxc4 {[%clk 0:02:55.5]} 16. Bxc4 {[%clk 0:02:26.2]} 16... cxd4 {[%clk
0:02:51.7]} 17. Kh2 {[%clk 0:02:12.5]} 17... Nc6 {[%clk 0:02:51.1]} 18. Rfd1
{[%clk 0:02:06.7]} 18... Be7 {[%clk 0:02:43.3]} 19. Bd3 {[%clk 0:02:04.1]} 19...
Rd8 {[%clk 0:02:32.9]} 20. Rac1 {[%clk 0:02:02.8]} 20... O-O {[%clk 0:02:20.9]}
21. Be4 {[%clk 0:01:42.3]} 21... Rc8 {[%clk 0:02:10.9]} 22. Bxf5 {[%clk
0:01:41]} 22... exf5 {[%clk 0:02:10.3]} 23. Nxd4 {[%clk 0:01:37.5]} 23... Nxd4
{[%clk 0:02:10]} 24. Bxd4 {[%clk 0:01:37.4]} 24... Qa6 {[%clk 0:02:06.3]} 25.
Bb2 {[%clk 0:01:20.5]} 25... Rxc1 {[%clk 0:01:55.5]} 26. Rxc1 {[%clk 0:01:19.5]}
26... Qb6 {[%clk 0:01:54.8]} 27. Rd1 {[%clk 0:01:02.8]} 27... Rd8 {[%clk
0:01:51.2]} 28. Rxd8+ {[%clk 0:01:01.6]} 28... Bxd8 {[%clk 0:01:49.9]} 29. Qd5
{[%clk 0:01:02]} 29... Be7 {[%clk 0:01:42.7]} 30. Qd7 {[%clk 0:00:59.9]} 30...
Qb4 {[%clk 0:01:30.2]} 31. Bd4 {[%clk 0:00:53.2]} 31... a6 {[%clk 0:01:23.1]}
32. e6 {[%clk 0:00:53.1]} 32... Qd6 {[%clk 0:01:07.2]} 33. Qe8+ {[%clk
0:00:52.3]} 33... Bf8 {[%clk 0:01:03.5]} 34. Qxf7# {[%clk 0:00:53.2]} 1-0

[Event "*** Titled Tuesday Blitz"]
[Site "Chess.com"]
[Date "2021.03.30"]
[Round "2"]
[White "hleol"]
[Black "Borsuk_Konstantin"]
[Result "0-1"]
[WhiteElo "2362"]
[BlackElo "2665"]
[TimeControl "180+1"]
[EndTime "10:15:46 PDT"]
[Termination "Borsuk_Konstantin won by resignation"]

1. d4 {[%clk 0:03:00.9]} 1... Nf6 {[%clk 0:02:59.6]} 2. c4 {[%clk 0:03:01.4]}
2... e6 {[%clk 0:02:59.6]} 3. Nc3 {[%clk 0:03:01.9]} 3... Bb4 {[%clk 0:02:59.7]}
4. e3 {[%clk 0:03:02.4]} 4... b6 {[%clk 0:02:59]} 5. Bd3 {[%clk 0:03:02.7]} 5...
Bb7 {[%clk 0:02:58.8]} 6. Ne2 {[%clk 0:03:03]} 6... O-O {[%clk 0:02:52.3]} 7.
O-O {[%clk 0:03:02.3]} 7... Re8 {[%clk 0:02:51.9]} 8. a3 {[%clk 0:03:00.5]} 8...
Bf8 {[%clk 0:02:52.2]} 9. e4 {[%clk 0:03:00]} 9... d6 {[%clk 0:02:49.8]} 10. f4
{[%clk 0:02:57.1]} 10... c5 {[%clk 0:02:47.1]} 11. d5 {[%clk 0:02:51.5]} 11...
Nbd7 {[%clk 0:02:40.6]} 12. Ng3 {[%clk 0:02:37.1]} 12... a6 {[%clk 0:02:38]} 13.
a4 {[%clk 0:02:34.3]} 13... Qc7 {[%clk 0:02:33.1]} 14. Bc2 {[%clk 0:01:42.5]}
14... g6 {[%clk 0:02:26.4]} 15. e5 {[%clk 0:01:33.6]} 15... dxe5 {[%clk
0:02:24.4]} 16. fxe5 {[%clk 0:01:34.5]} 16... Qxe5 {[%clk 0:02:24.6]} 17. Kh1
{[%clk 0:01:15]} 17... exd5 {[%clk 0:02:10.2]} 18. cxd5 {[%clk 0:01:14.4]} 18...
Bg7 {[%clk 0:01:49.9]} 19. Bf4 {[%clk 0:01:11.9]} 19... Qd4 {[%clk 0:01:48.8]}
20. d6 {[%clk 0:00:47.4]} 20... h6 {[%clk 0:01:37]} 21. Qb1 {[%clk 0:00:34.8]}
21... Ng4 {[%clk 0:01:29.9]} 22. h3 {[%clk 0:00:32.2]} 22... Ne3 {[%clk
0:01:27.8]} 23. Bxe3 {[%clk 0:00:25.4]} 23... Rxe3 {[%clk 0:01:26.7]} 24. Bxg6
{[%clk 0:00:26]} 24... Rxg3 {[%clk 0:01:20.5]} 25. Bxf7+ {[%clk 0:00:21.2]}
25... Kh8 {[%clk 0:01:19.9]} 0-1

[Event "*** Titled Tuesday Blitz"]
[Site "Chess.com"]
[Date "2021.03.30"]
[Round "2"]
[White "DrMamaliga"]
[Black "zala02"]
[Result "1-0"]
[WhiteElo "2408"]
[BlackElo "2148"]
[TimeControl "180+1"]
[EndTime "10:15:47 PDT"]
[Termination "DrMamaliga won by resignation"]

1. c4 {[%clk 0:03:00.9]} 1... c6 {[%clk 0:02:59.3]} 2. Nc3 {[%clk 0:02:57]} 2...
d5 {[%clk 0:02:59.4]} 3. e3 {[%clk 0:02:57.9]} 3... Nf6 {[%clk 0:02:58.6]} 4.
Nf3 {[%clk 0:02:58.5]} 4... Bf5 {[%clk 0:02:56.7]} 5. cxd5 {[%clk 0:02:57.6]}
5... cxd5 {[%clk 0:02:51.2]} 6. Qb3 {[%clk 0:02:57.9]} 6... e6 {[%clk
0:02:48.1]} 7. Qxb7 {[%clk 0:02:57.2]} 7... Nbd7 {[%clk 0:02:48.4]} 8. Bb5
{[%clk 0:02:56.9]} 8... Bd6 {[%clk 0:02:35.8]} 9. Nd4 {[%clk 0:02:55.1]} 9...
Rb8 {[%clk 0:02:04.5]} 10. Qxa7 {[%clk 0:02:40.3]} 10... Bc5 {[%clk 0:01:52.6]}
11. Qxc5 {[%clk 0:02:39.2]} 11... Rxb5 {[%clk 0:01:42.3]} 12. Qxb5 {[%clk
0:02:38.3]} 12... Bg6 {[%clk 0:01:42.1]} 13. Nc6 {[%clk 0:02:37.5]} 13... Qc7
{[%clk 0:01:39.7]} 14. Nd4 {[%clk 0:02:25.6]} 14... O-O {[%clk 0:01:37.8]} 15.
O-O {[%clk 0:02:25.4]} 15... Rb8 {[%clk 0:01:37.2]} 16. Qc6 {[%clk 0:02:23.8]}
16... Qd8 {[%clk 0:01:33.1]} 17. Ncb5 {[%clk 0:02:15]} 17... Rc8 {[%clk
0:00:59]} 18. Qd6 {[%clk 0:02:06.4]} 18... Ne4 {[%clk 0:00:49.6]} 19. Qb4 {[%clk
0:02:06.1]} 19... Ndc5 {[%clk 0:00:44.2]} 20. f3 {[%clk 0:01:56.6]} 20... Nd3
{[%clk 0:00:42.2]} 21. Qa3 {[%clk 0:01:49.9]} 21... Nec5 {[%clk 0:00:39.3]} 22.
b4 {[%clk 0:01:47.5]} 22... Ra8 {[%clk 0:00:29.1]} 23. Qc3 {[%clk 0:01:40.3]}
23... Na4 {[%clk 0:00:29]} 24. Qc7 {[%clk 0:01:37.8]} 24... Qf8 {[%clk
0:00:25.6]} 25. Nc6 {[%clk 0:01:31.7]} 25... Kh8 {[%clk 0:00:19]} 26. Nd6 {[%clk
0:01:26.3]} 26... Ne5 {[%clk 0:00:14.2]} 27. Nxe5 {[%clk 0:01:21.9]} 1-0

[Event "*** Titled Tuesday Blitz"]
[Site "Chess.com"]
[Date "2021.03.30"]
[Round "2"]
[White "DFeco"]
[Black "Titus369"]
[Result "1-0"]
[WhiteElo "2324"]
[BlackElo "2529"]
[TimeControl "180+1"]
[EndTime "10:15:49 PDT"]
[Termination "DFeco won by checkmate"]

1. c4 {[%clk 0:03:00.9]} 1... e6 {[%clk 0:02:41.3]} 2. g3 {[%clk 0:02:59.1]}
2... d5 {[%clk 0:02:37.4]} 3. Bg2 {[%clk 0:02:56.7]} 3... Nf6 {[%clk 0:02:36.2]}
4. Nf3 {[%clk 0:02:56.6]} 4... Be7 {[%clk 0:02:36.2]} 5. O-O {[%clk 0:02:56.5]}
5... O-O {[%clk 0:02:35]} 6. d4 {[%clk 0:02:55.8]} 6... dxc4 {[%clk 0:02:28.2]}
7. Ne5 {[%clk 0:02:55.1]} 7... Nc6 {[%clk 0:02:24.9]} 8. Nxc6 {[%clk 0:02:53.9]}
8... bxc6 {[%clk 0:02:25.8]} 9. Qa4 {[%clk 0:02:41.2]} 9... Nd5 {[%clk 0:02:09]}
10. Na3 {[%clk 0:02:19.5]} 10... Nb4 {[%clk 0:01:57.7]} 11. Nxc4 {[%clk
0:01:54.7]} 11... Qxd4 {[%clk 0:01:53]} 12. Na5 {[%clk 0:01:44.2]} 12... Qb6
{[%clk 0:01:29.8]} 13. Be3 {[%clk 0:01:15.5]} 13... Bc5 {[%clk 0:01:25.1]} 14.
Nc4 {[%clk 0:01:09.6]} 14... Qb5 {[%clk 0:01:12.4]} 15. Qxb5 {[%clk 0:01:08.4]}
15... cxb5 {[%clk 0:01:13.3]} 16. Bxc5 {[%clk 0:01:08.3]} 16... bxc4 {[%clk
0:01:12.9]} 17. Bxb4 {[%clk 0:01:06.2]} 17... Rb8 {[%clk 0:01:11.8]} 18. Bxf8
{[%clk 0:01:05.7]} 18... Kxf8 {[%clk 0:01:12.7]} 19. b3 {[%clk 0:01:04.8]} 19...
Ke7 {[%clk 0:01:13.6]} 20. bxc4 {[%clk 0:01:04.1]} 20... Rb2 {[%clk 0:01:14.5]}
21. Bf3 {[%clk 0:00:59.7]} 21... Rb6 {[%clk 0:01:15.4]} 22. Rab1 {[%clk
0:00:59]} 22... Ra6 {[%clk 0:01:16.3]} 23. Rb2 {[%clk 0:00:58.6]} 23... Ra5
{[%clk 0:01:16.3]} 24. Rc1 {[%clk 0:00:55]} 24... Ba6 {[%clk 0:01:17.2]} 25. c5
{[%clk 0:00:54.7]} 25... Kf6 {[%clk 0:01:16.2]} 26. c6 {[%clk 0:00:53.9]} 26...
Ra4 {[%clk 0:01:15.7]} 27. Rb7 {[%clk 0:00:51.1]} 27... Ra3 {[%clk 0:01:16.6]}
28. Rxa7 {[%clk 0:00:49.4]} 28... Rxa2 {[%clk 0:01:03.4]} 29. Rxc7 {[%clk
0:00:49.1]} 29... Bxe2 {[%clk 0:01:04.3]} 30. Bxe2 {[%clk 0:00:48.4]} 30... Rxe2
{[%clk 0:01:04.7]} 31. Rd7 {[%clk 0:00:48.7]} 31... Ra2 {[%clk 0:01:04.9]} 32.
c7 {[%clk 0:00:48.3]} 32... Ra8 {[%clk 0:01:05.8]} 33. c8=Q {[%clk 0:00:48.3]}
33... Rxc8 {[%clk 0:01:06.1]} 34. Rxc8 {[%clk 0:00:48.5]} 34... h5 {[%clk
0:01:06.6]} 35. Rcc7 {[%clk 0:00:49]} 35... g6 {[%clk 0:01:07.5]} 36. Rxf7+
{[%clk 0:00:49.4]} 36... Kg5 {[%clk 0:01:08.4]} 37. h4+ {[%clk 0:00:48.4]} 37...
Kg4 {[%clk 0:01:05.6]} 38. Kg2 {[%clk 0:00:48.7]} 38... g5 {[%clk 0:01:05.7]}
39. Rc4# {[%clk 0:00:49.1]} 1-0

[Event "*** Titled Tuesday Blitz"]
[Site "Chess.com"]
[Date "2021.03.30"]
[Round "2"]
[White "PavelChernomordik"]
[Black "Zipa5"]
[Result "1-0"]
[WhiteElo "2374"]
[BlackElo "1925"]
[TimeControl "180+1"]
[EndTime "10:15:51 PDT"]
[Termination "PavelChernomordik won on time"]

1. e4 {[%clk 0:03:00.9]} 1... e6 {[%clk 0:02:58.7]} 2. Nc3 {[%clk 0:02:59.4]}
2... c5 {[%clk 0:02:54.3]} 3. f4 {[%clk 0:02:58.6]} 3... Nc6 {[%clk 0:02:53.2]}
4. Nf3 {[%clk 0:02:58.1]} 4... g6 {[%clk 0:02:52.6]} 5. Bb5 {[%clk 0:02:57.3]}
5... Nge7 {[%clk 0:02:49.2]} 6. e5 {[%clk 0:02:52.8]} 6... a6 {[%clk 0:02:36.5]}
7. Ne4 {[%clk 0:02:49.2]} 7... Nd5 {[%clk 0:02:13.3]} 8. Bxc6 {[%clk 0:02:47.6]}
8... dxc6 {[%clk 0:02:09.5]} 9. c4 {[%clk 0:02:45.4]} 9... Nxf4 {[%clk
0:02:00.5]} 10. Nf6+ {[%clk 0:02:43.4]} 10... Ke7 {[%clk 0:01:57.5]} 11. d4
{[%clk 0:02:34.9]} 11... Qa5+ {[%clk 0:01:24.5]} 12. Bd2 {[%clk 0:02:25.7]}
12... Nxg2+ {[%clk 0:01:19.2]} 13. Kf2 {[%clk 0:02:24.2]} 13... Qb6 {[%clk
0:01:16.6]} 14. Kxg2 {[%clk 0:02:17.4]} 14... h6 {[%clk 0:01:10.5]} 15. d5
{[%clk 0:02:03.1]} 15... exd5 {[%clk 0:00:51.1]} 16. cxd5 {[%clk 0:02:01.2]}
16... Qxb2 {[%clk 0:00:44.4]} 17. Rb1 {[%clk 0:01:52.5]} 17... Qxa2 {[%clk
0:00:37.6]} 18. Qc1 {[%clk 0:01:36.6]} 18... Kd8 {[%clk 0:00:25.3]} 19. dxc6
{[%clk 0:01:24]} 19... b5 {[%clk 0:00:13.8]} 20. Ra1 {[%clk 0:01:16.6]} 1-0

[Event "*** Titled Tuesday Blitz"]
[Site "Chess.com"]
[Date "2021.03.30"]
[Round "2"]
[White "Susal_De_Silva"]
[Black "chessdiamant"]
[Result "1-0"]
[WhiteElo "2690"]
[BlackElo "2341"]
[TimeControl "180+1"]
[EndTime "10:15:56 PDT"]
[Termination "Susal_De_Silva won by checkmate"]

1. e4 {[%clk 0:03:00.9]} 1... c5 {[%clk 0:02:57.1]} 2. Nf3 {[%clk 0:03:00.6]}
2... Nc6 {[%clk 0:02:56.7]} 3. Bb5 {[%clk 0:03:00.8]} 3... g6 {[%clk 0:02:56.4]}
4. Bxc6 {[%clk 0:03:01]} 4... dxc6 {[%clk 0:02:57.3]} 5. d3 {[%clk 0:03:01.3]}
5... Bg7 {[%clk 0:02:56.7]} 6. h3 {[%clk 0:03:02.2]} 6... Nf6 {[%clk 0:02:56.4]}
7. O-O {[%clk 0:03:02.8]} 7... O-O {[%clk 0:02:54.9]} 8. Nc3 {[%clk 0:03:03.4]}
8... b6 {[%clk 0:02:54]} 9. Be3 {[%clk 0:03:04]} 9... e5 {[%clk 0:02:53.9]} 10.
a4 {[%clk 0:03:04.5]} 10... a5 {[%clk 0:02:52.2]} 11. Nd2 {[%clk 0:03:03.1]}
11... Nh5 {[%clk 0:02:48.1]} 12. Ne2 {[%clk 0:02:59]} 12... f5 {[%clk
0:02:45.6]} 13. f4 {[%clk 0:02:57.7]} 13... exf4 {[%clk 0:02:41.9]} 14. Nxf4
{[%clk 0:02:58.6]} 14... Nxf4 {[%clk 0:02:41.2]} 15. Bxf4 {[%clk 0:02:59.5]}
15... fxe4 {[%clk 0:02:39.6]} 16. Nxe4 {[%clk 0:03:00.4]} 16... Bxb2 {[%clk
0:02:33]} 17. Rb1 {[%clk 0:02:46.2]} 17... Bd4+ {[%clk 0:02:31.5]} 18. Kh1
{[%clk 0:02:46.3]} 18... Qd5 {[%clk 0:02:21.9]} 19. c3 {[%clk 0:02:40.3]} 19...
Bg7 {[%clk 0:02:19.6]} 20. Rxb6 {[%clk 0:02:37.1]} 20... c4 {[%clk 0:02:14.8]}
21. Bh6 {[%clk 0:02:08.5]} 21... Bxh3 {[%clk 0:01:51.1]} 22. Bxg7 {[%clk
0:01:58.1]} 22... Kxg7 {[%clk 0:01:38.6]} 23. gxh3 {[%clk 0:01:56.1]} 23... cxd3
{[%clk 0:01:36.9]} 24. Rb7+ {[%clk 0:01:46]} 24... Kh8 {[%clk 0:01:09.7]} 25.
Re1 {[%clk 0:01:43.3]} 25... Rae8 {[%clk 0:01:04.4]} 26. c4 {[%clk 0:01:11]}
26... Qxc4 {[%clk 0:00:40.7]} 27. Qa1+ {[%clk 0:01:06.8]} 27... Kg8 {[%clk
0:00:25.9]} 28. Qg7# {[%clk 0:01:05.3]} 1-0

[Event "*** Titled Tuesday Blitz"]
[Site "Chess.com"]
[Date "2021.03.30"]
[Round "2"]
[White "DanielTitichoca"]
[Black "FMJoseHerrera"]
[Result "0-1"]
[WhiteElo "2272"]
[BlackElo "2566"]
[TimeControl "180+1"]
[EndTime "10:15:59 PDT"]
[Termination "FMJoseHerrera won by resignation"]

1. e4 {[%clk 0:03:00.9]} 1... c5 {[%clk 0:02:59.5]} 2. Nf3 {[%clk 0:03:01]} 2...
e6 {[%clk 0:02:58.9]} 3. d4 {[%clk 0:03:01.3]} 3... cxd4 {[%clk 0:02:58.4]} 4.
Nxd4 {[%clk 0:03:02.2]} 4... a6 {[%clk 0:02:58.6]} 5. Nc3 {[%clk 0:03:00.7]}
5... Qc7 {[%clk 0:02:58.5]} 6. Be3 {[%clk 0:02:58.7]} 6... b5 {[%clk 0:02:58.4]}
7. a3 {[%clk 0:02:58.4]} 7... Bb7 {[%clk 0:02:57.9]} 8. Bd3 {[%clk 0:02:58.1]}
8... Nf6 {[%clk 0:02:57.4]} 9. O-O {[%clk 0:02:58]} 9... Be7 {[%clk 0:02:56.8]}
10. f4 {[%clk 0:02:56.2]} 10... d6 {[%clk 0:02:56]} 11. Kh1 {[%clk 0:02:50.7]}
11... h5 {[%clk 0:02:55.3]} 12. Qf3 {[%clk 0:02:32.6]} 12... Nbd7 {[%clk
0:02:54.4]} 13. Rae1 {[%clk 0:02:31.5]} 13... h4 {[%clk 0:02:53.8]} 14. Bf2
{[%clk 0:02:08.2]} 14... h3 {[%clk 0:02:52.6]} 15. Bg3 {[%clk 0:02:05.7]} 15...
hxg2+ {[%clk 0:02:44.3]} 16. Qxg2 {[%clk 0:02:06.6]} 16... g6 {[%clk 0:02:43.3]}
17. Kg1 {[%clk 0:01:48.9]} 17... O-O-O {[%clk 0:02:31.8]} 18. Nf3 {[%clk
0:01:34.2]} 18... Nc5 {[%clk 0:02:30]} 19. Ng5 {[%clk 0:01:31.7]} 19... Rdf8
{[%clk 0:02:21.3]} 20. b4 {[%clk 0:01:21]} 20... Ncd7 {[%clk 0:02:16.9]} 21. Ne2
{[%clk 0:01:14.4]} 21... d5 {[%clk 0:02:07.1]} 22. Ra1 {[%clk 0:00:37.6]} 22...
dxe4 {[%clk 0:02:00.4]} 23. Nxe4 {[%clk 0:00:37.7]} 23... Nd5 {[%clk 0:01:57.7]}
24. Qf2 {[%clk 0:00:30.2]} 24... f5 {[%clk 0:01:52.7]} 25. Nd2 {[%clk
0:00:25.5]} 25... g5 {[%clk 0:01:37.2]} 26. fxg5 {[%clk 0:00:20.3]} 26... f4
{[%clk 0:01:36.4]} 27. Bh4 {[%clk 0:00:19.1]} 27... Ne3 {[%clk 0:01:30.5]} 28.
Rfc1 {[%clk 0:00:16.6]} 28... Ng4 {[%clk 0:01:28.5]} 29. Qe1 {[%clk 0:00:16.4]}
29... f3 {[%clk 0:01:27.3]} 30. Nxf3 {[%clk 0:00:15.8]} 30... Rxf3 {[%clk
0:01:25.9]} 31. Bg3 {[%clk 0:00:16.7]} 31... Qb6+ {[%clk 0:01:24.4]} 32. Kh1
{[%clk 0:00:12]} 0-1

[Event "*** Titled Tuesday Blitz"]
[Site "Chess.com"]
[Date "2021.03.30"]
[Round "2"]
[White "AttilaTurzo"]
[Black "ckgchess"]
[Result "0-1"]
[WhiteElo "2488"]
[BlackElo "2706"]
[TimeControl "180+1"]
[EndTime "10:16:01 PDT"]
[Termination "ckgchess won by resignation"]

1. d4 {[%clk 0:02:54]} 1... Nf6 {[%clk 0:03:00]} 2. Nf3 {[%clk 0:02:48.4]} 2...
e6 {[%clk 0:02:57.7]} 3. Bf4 {[%clk 0:02:27.8]} 3... d5 {[%clk 0:02:57.7]} 4. e3
{[%clk 0:02:27.4]} 4... Bd6 {[%clk 0:02:57.8]} 5. Bg3 {[%clk 0:02:27.5]} 5...
O-O {[%clk 0:02:57.5]} 6. Nbd2 {[%clk 0:02:04.8]} 6... c5 {[%clk 0:02:57.3]} 7.
c3 {[%clk 0:02:05]} 7... Qc7 {[%clk 0:02:57.3]} 8. dxc5 {[%clk 0:02:04.6]} 8...
Qxc5 {[%clk 0:02:52.8]} 9. Bd3 {[%clk 0:02:04.9]} 9... Nbd7 {[%clk 0:02:50.1]}
10. O-O {[%clk 0:02:04.3]} 10... Bxg3 {[%clk 0:02:39.8]} 11. hxg3 {[%clk
0:02:04.2]} 11... e5 {[%clk 0:02:40.1]} 12. e4 {[%clk 0:02:04.3]} 12... dxe4
{[%clk 0:02:36.2]} 13. Nxe4 {[%clk 0:02:05.2]} 13... Nxe4 {[%clk 0:02:36.4]} 14.
Bxe4 {[%clk 0:02:06.1]} 14... Nf6 {[%clk 0:02:36.2]} 15. Bc2 {[%clk 0:01:56.3]}
15... Bg4 {[%clk 0:02:35]} 16. Re1 {[%clk 0:01:46.9]} 16... Rad8 {[%clk
0:02:27.6]} 17. Qc1 {[%clk 0:01:40.6]} 17... Rfe8 {[%clk 0:02:15.2]} 18. Qe3
{[%clk 0:01:30.6]} 18... Qxe3 {[%clk 0:01:24.3]} 19. Rxe3 {[%clk 0:01:31.5]}
19... Bxf3 {[%clk 0:01:21.6]} 20. gxf3 {[%clk 0:01:32.4]} 20... Rd2 {[%clk
0:01:21.9]} 21. Rc1 {[%clk 0:01:32.3]} 21... g6 {[%clk 0:01:15.6]} 22. Kf1
{[%clk 0:01:32.1]} 22... Kg7 {[%clk 0:01:09]} 23. Re2 {[%clk 0:01:26]} 23...
Rxe2 {[%clk 0:01:04.6]} 24. Kxe2 {[%clk 0:01:26.3]} 24... Rd8 {[%clk 0:01:03.1]}
25. Rd1 {[%clk 0:01:25.4]} 25... Rxd1 {[%clk 0:01:03.2]} 26. Bxd1 {[%clk
0:01:25.4]} 26... h5 {[%clk 0:01:04.1]} 27. c4 {[%clk 0:01:21.2]} 27... Kf8
{[%clk 0:01:03.9]} 28. c5 {[%clk 0:01:21.6]} 28... Ke7 {[%clk 0:01:04.3]} 29.
Kd3 {[%clk 0:01:19.5]} 29... g5 {[%clk 0:01:02]} 30. Be2 {[%clk 0:01:08.1]}
30... h4 {[%clk 0:00:59.9]} 31. Bf1 {[%clk 0:01:08.5]} 31... Nh5 {[%clk
0:00:48.2]} 32. Ke4 {[%clk 0:01:05.1]} 32... hxg3 {[%clk 0:00:42.3]} 33. Kxe5
{[%clk 0:01:02.1]} 33... gxf2 {[%clk 0:00:42.1]} 34. Kf5 {[%clk 0:00:58.1]}
34... Ng3+ {[%clk 0:00:42]} 35. Kxg5 {[%clk 0:00:58.5]} 35... Nxf1 {[%clk
0:00:42.9]} 0-1